Cogmind - Beta 10.1 @@@ ROGUE MODE // 2020.10.10 @ 20:45:03 Player: albenzo Result: Destroyed by Y-72 Warden with Railgun Performance ------------- Evolutions (5) 2500 Regions Visited (17) 3400 Robots Destroyed (80) 400 Value Destroyed (3031) 3031 Prototype IDs (24) 480 Alien Tech Used (0) 0 Bonus (1542) 1542 TOTAL SCORE: 11353 Bonus ------- High Alert Combat Kills 74 Follower Combat Kills 1168 Met Data Miner 300 Cogmind --------- Core Integrity 0/1000 Matter 288/300 Energy 168/170 System Corruption 26% Temperature Cool (9) Movement Hovering (50) Location -5/Archives Parts ------- > --- POWER (1) -------- Micro Fission Core > --- PROPULSION (5) --- Cooled Aerolev Unit > --- UTILITY (9) ------ (None) > --- WEAPON (2) ------- (None) > --- INVENTORY (4) ---- System Guard System Guard Gauss Rifle Hypervelocity Gauss Cannon Peak State ------------ > --- POWER ------------ Improved Deuterium Engine > --- PROPULSION ------- Cooled Aerolev Unit Cooled Aerolev Unit Cooled Aerolev Unit Cooled Aerolev Unit Gyrokinetic Inverter > --- UTILITY ---------- Large Storage Unit High-capacity Storage Unit Advanced Sensor Array Improved Transmission Jammer Phase Shifter Phase Shifter Improved Medium Armor Plating Hacking Suite Recalibrator > --- WEAPON ----------- Scythe Scythe > --- INVENTORY -------- Light Angular Momentum Engine Light Fission Core Micro Fission Core Micro Fission Core Cooled Aerolev Unit Cooled Aerolev Unit Cooled Aerolev Unit Cooled Aerolev Unit Cooled Aerolev Unit System Guard System Guard Gauss Rifle Hypervelocity Gauss Cannon Hypervelocity Gauss Cannon Long-range Missile Launcher Ripper Phasing Sabre [Rating: 80] Favorites ----------- Power Light Nuclear Core Engine Ion Engine Power Core Light Nuclear Core Propulsion Improved Treads Treads Improved Treads Leg Aluminum Leg Hover Unit Cooled Aerolev Unit Utility High-capacity Storage Unit Device Advanced Sensor Array Storage High-capacity Storage Unit Processor Advanced Visual Processing Unit Hackware Hacking Suite Protection Improved Medium Armor Plating Weapon Light Assault Rifle Energy Gun Medium Laser Energy Cannon Heavy Particle Cannon Ballistic Gun Light Assault Rifle Launcher Rocket Launcher Special Weapon Mining Laser Slashing Weapon Scythe Build | -11 -10 -10 -9 -9 -9 -7 -7 -7 -7 -6 -6 -6 -6 -5 -5 -5 -5 ------- Run | Scr Mat Min Mat Sto Rec Fac Low Low Dat Pro Fac Low Low Fac Ext Cet Arc Slots Evolved 10 | . . . 2 . . 4 . . . . 2 . . 2 . . . Power . | . . . . . . . . . . . . . . . . . . Propulsion 3 | . . . 2 . . 1 . . . . . . . . . . . Utility 7 | . . . . . . 3 . . . . 2 . . 2 . . . Weapon . | . . . . . . . . . . . . . . . . . . Parts Attached 173 | 6 6 14 4 21 3 5 9 4 . 11 35 . 17 9 11 13 5 Power 30 | 1 1 2 . 2 . . 2 1 . 2 7 . 1 1 5 4 1 Engine 8 | 1 . 1 . 2 . . . . . . . . 1 . 2 1 . Core 22 | . 1 1 . . . . 2 1 . 2 7 . . 1 3 3 1 Reactor . | . . . . . . . . . . . . . . . . . . Propulsion 62 | 2 2 5 3 8 1 1 4 2 . 2 11 . 5 5 2 7 2 Treads 20 | . . . . 4 1 1 4 2 . 2 6 . . . . . . Leg 31 | 2 2 5 3 4 . . . . . . 5 . 5 . . 5 . Wheel . | . . . . . . . . . . . . . . . . . . Hover 11 | . . . . . . . . . . . . . . 5 2 2 2 Flight . | . . . . . . . . . . . . . . . . . . Utility 38 | 1 2 1 1 2 . 4 2 . . 1 11 . 6 3 4 . . Device 20 | . 1 1 . . . 2 2 . . 1 4 . 4 2 3 . . Storage 9 | 1 1 . 1 2 . 1 . . . . 2 . 1 . . . . Processor 2 | . . . . . . 1 . . . . . . . . 1 . . Hackware 4 | . . . . . . . . . . . 3 . . 1 . . . Protection 3 | . . . . . . . . . . . 2 . 1 . . . . Artifact . | . . . . . . . . . . . . . . . . . . Weapon 43 | 2 1 6 . 9 2 . 1 1 . 6 6 . 5 . . 2 2 Energy Gun 1 | 1 . . . . . . . . . . . . . . . . . Energy Cannon 1 | . . . . . . . . . . . 1 . . . . . . Ballistic Gun 24 | 1 1 5 . 7 1 . 1 1 . 4 3 . . . . . . Ballistic Cannon . | . . . . . . . . . . . . . . . . . . Launcher 6 | . . 1 . . 1 . . . . 2 . . 1 . . 1 . Special Weapon 2 | . . . . 2 . . . . . . . . . . . . . Impact Weapon . | . . . . . . . . . . . . . . . . . . Slashing Weapon 9 | . . . . . . . . . . . 2 . 4 . . 1 2 Piercing Weapon . | . . . . . . . . . . . . . . . . . . Special Melee Weapon . | . . . . . . . . . . . . . . . . . . Unidentified Prototypes 2 | . . . . . . . . . . . 1 . . 1 . . . Parts Lost 86 | . . 4 . 4 1 . 4 1 . 5 21 . 13 . 9 10 14 Power 15 | . . 1 . 2 . . . 1 . 1 3 . 1 . 3 2 1 Propulsion 33 | . . . . 1 1 . 3 . . 2 11 . 4 . 1 4 6 Utility 21 | . . 1 . . . . . . . 1 3 . 5 . 5 3 3 Weapon 17 | . . 2 . 1 . . 1 . . 1 4 . 3 . . 1 4 Highest Loss Streak 20 | . . 2 . 2 1 . 3 1 . 2 20 . 13 . 4 5 14 Average Slot Usage (%) 94 | . 99 95 98 98 99 100 95 99 100 99 90 93 74 95 97 70 54 Engine 3 | . 9 1 11 10 11 7 1 . . . . . . 2 2 1 . Core 4 | . 4 12 . . . . 5 6 7 7 5 6 4 2 2 3 4 Treads 16 | . . . . 25 43 38 33 38 38 37 12 . . . . . . Leg 11 | . 28 28 42 17 . . . . . . 14 26 21 2 . 7 19 Hover 3 | . . . . . . . . . . . . . . 25 29 20 6 Device 9 | . 13 10 1 . . 7 7 7 7 7 11 13 9 21 21 3 . Storage 16 | . 14 14 20 22 22 23 23 23 23 23 11 6 6 11 11 8 5 Processor 3 | . . . . . . 7 7 7 7 7 6 6 3 . 2 5 3 Hackware 4 | . . . . . . . . . . . 9 20 15 9 7 5 2 Protection 1 | . . . . . . . . . . . 3 . . 5 4 . . Ballistic Gun 13 | . 23 27 22 20 22 15 15 15 15 14 4 . . . . . . Slashing Weapon 3 | . . . . . . . . . . . 8 13 10 11 11 10 9 Naked Turns . | . . . . . . . . . . . . . . . . . . Heaviest Build 101 | 12 24 26 41 73 73 90 99 101 101 101 100 48 71 72 77 70 45 Greatest Support 122 | 20 20 25 45 92 92 115 120 117 117 122 119 66 76 76 76 80 80 Greatest Overweight (x) 24 | 3 1 1 . 1 . . 1 . . 1 4 . 11 4 24 23 2 Average Overweight (x) . | . . . . . . . . . . . . . . . . . . Largest Inventory Capacity 26 | 6 10 10 16 20 20 26 26 26 26 26 26 12 18 18 18 18 12 Average Capacity 17 | 5 6 10 15 18 20 25 26 26 26 26 17 12 12 18 18 15 11 Most Carried 26 | 6 10 10 9 20 20 20 26 26 26 26 26 12 12 18 18 14 12 Average Carried 16 | 3 6 9 8 16 19 16 23 25 26 23 16 11 10 15 17 11 10 Final Capacity 26 | 6 10 10 16 20 20 26 26 26 26 26 12 12 18 18 18 12 4 Final Carried 26 | 6 10 10 9 20 19 20 25 26 26 24 12 12 7 18 15 12 4 Class Distribution -------------------- 29% | Hauler-Mutant 22% | Scavenger-Mutant 18% | Hacker-Mutant 15% | Mutant 13% | Commander-Mutant Dominant Class ---------------- Mutant | -10/Materials Scavenger-Mutant | -10/Mines Scavenger-Mutant | -9/Materials Hauler-Mutant | -9/Storage Commander-Mutant | -9/Recycling Commander-Mutant | -7/Factory Hauler-Mutant | -7/Lower Caves Hauler-Mutant | -7/Lower Caves Hauler-Mutant | -7/Data Miner Hauler-Mutant | -6/Proximity Caves Scavenger-Mutant | -6/Factory Hacker-Mutant | -6/Lower Caves Hacker-Mutant | -6/Lower Caves Hacker-Mutant | -5/Factory Hacker-Mutant | -5/Extension Mutant | -5/Cetus Scavenger-Mutant | -5/Archives Resources | -11 -10 -10 -9 -9 -9 -7 -7 -7 -7 -6 -6 -6 -6 -5 -5 -5 -5 ----------- Run | Scr Mat Min Mat Sto Rec Fac Low Low Dat Pro Fac Low Low Fac Ext Cet Arc Matter Collected 2840 | 198 159 245 42 426 33 68 218 170 . 352 233 50 253 . 168 225 . Remotely . | . . . . . . . . . . . . . . . . . . Salvage Created 3238 | . 497 299 44 758 5 20 294 50 . 168 445 . 331 . 199 128 . Parts 163 | . 23 24 3 43 3 . 12 3 . 6 24 . 10 . 4 8 . Haulers Intercepted . | . . . . . . . . . . . . . . . . . . Recyclers Shooed 2 | . 1 1 . . . . . . . . . . . . . . . Parts Field Recycled . | . . . . . . . . . . . . . . . . . . Retrieved Matter . | . . . . . . . . . . . . . . . . . . Parts Self-Destructed 44 | . . . . . . . 5 3 . 17 . 1 18 . . . . Prevented 11 | . . . . . . . . . . . . 2 9 . . . . Kills | -11 -10 -10 -9 -9 -9 -7 -7 -7 -7 -6 -6 -6 -6 -5 -5 -5 -5 ------- Run | Scr Mat Min Mat Sto Rec Fac Low Low Dat Pro Fac Low Low Fac Ext Cet Arc Combat Hostiles Destroyed 77 | . 9 11 1 18 1 1 6 1 . 5 11 . 5 . 3 5 . Melee 19 | . . . . . . 1 . . . . 6 . 5 . 3 4 . Guns 51 | . 9 7 1 18 1 . 6 1 . 4 4 . . . . . . Cannons 1 | . . . . . . . . . . . 1 . . . . . . AOE 6 | . . 4 . . . . . . . 1 . . . . . 1 . Classes Destroyed 12 | . 3 1 . 1 1 1 2 . . . 1 . 2 . . . . Recycler 2 | . 2 . . . . . . . . . . . . . . . . Mechanic 1 | . . 1 . . . . . . . . . . . . . . . Drone 1 | . . . . . 1 . . . . . . . . . . . . Swarmer 22 | . 3 6 . 3 . . . . . 3 4 . . . . 3 . Grunt 24 | . 6 5 1 7 . . 1 . . 2 2 . . . . . . Brawler 1 | . . . . . . . . . . . . . 1 . . . . Duelist 3 | . . . . . . . . . . . . . 3 . . . . Sentry 12 | . . . . 8 . . . . . . 1 . 1 . 2 . . Hunter 4 | . . . . . . . . . . . 2 . . . 1 1 . Programmer 4 | . . . . . . . 1 1 . . 2 . . . . . . Cetus Guard 1 | . . . . . . . . . . . . . . . . 1 . Assembled 1 | . . . . . . 1 . . . . . . . . . . . Thug 1 | . . . . . . . 1 . . . . . . . . . . Fireman 3 | . . . . . . . 3 . . . . . . . . . . Best Kill Streak 5 | . 3 5 1 5 1 1 3 1 . 2 4 . 4 . 2 4 . Combat Bots Only 5 | . 3 4 1 5 1 1 3 1 . 2 4 . 4 . 2 4 . Max Kills in Single Turn 3 | . 1 3 1 1 1 1 1 1 . 1 1 . 1 . 1 1 . Gunslinging . | . . . . . . . . . . . . . . . . . . Exploded 2 | . . 2 . . . . . . . 1 . . . . . 1 . Melee 1 | . . . . . . 1 . . . . 1 . 1 . 1 1 . Uniques/NPCs Destroyed . | . . . . . . . . . . . . . . . . . . Combat | -11 -10 -10 -9 -9 -9 -7 -7 -7 -7 -6 -6 -6 -6 -5 -5 -5 -5 -------- Run | Scr Mat Min Mat Sto Rec Fac Low Low Dat Pro Fac Low Low Fac Ext Cet Arc Damage Taken 11779 | . 254 438 79 1185 30 151 490 121 . 697 2390 . 1863 . 1277 1440 1364 Core 2227 | . 50 35 11 205 . . . . . 75 244 . 588 . 225 440 354 Absorbed by Shields . | . . . . . . . . . . . . . . . . . . Core Remaining (%) 60 | 100 . 66 . . 46 . . . . 89 . . 2 . . . . Volleys Fired 227 | . 27 31 6 63 11 . 24 7 . 19 30 . . . . 9 . Largest 2 | . 2 2 2 2 2 . 2 2 . 2 2 . . . . 1 . Hottest 103 | . 70 53 40 100 53 . 43 43 . 58 103 . . . . 43 . Shots Fired 427 | . 54 58 12 123 22 . 48 14 . 35 52 . . . . 9 . Gun 405 | . 54 56 12 120 20 . 48 14 . 32 49 . . . . . . Cannon 3 | . . . . . . . . . . . 3 . . . . . . Launcher 16 | . . 2 . . 2 . . . . 3 . . . . . 9 . Special 3 | . . . . 3 . . . . . . . . . . . . . Kinetic 398 | . 47 56 12 120 20 . 48 14 . 32 49 . . . . . . Thermal 13 | . 7 . . 3 . . . . . . 3 . . . . . . Explosive 16 | . . 2 . . 2 . . . . 3 . . . . . 9 . Electromagnetic . | . . . . . . . . . . . . . . . . . . Robot Hit Streak 22 | . 20 7 11 22 14 . 20 9 . 11 15 . . . . 7 . Robot Miss Streak 9 | . 1 7 1 1 9 . 1 1 . 2 2 . . . . 1 . Penetration Max . | . . . . . . . . . . . . . . . . . . Secondary Targets 4 | . 2 . . 1 . . 1 . . . . . . . . . . Max Gunslinging Chain 1 | . 1 . . 1 . . 1 . . . . . . . . . . Shots Hit Robots 374 | . 41 28 10 101 8 . 46 11 . 27 51 . 19 . 21 11 . Core Hits 196 | . 24 18 2 40 4 1 21 3 . 15 31 . 7 . 8 22 . Critical Hits 6 | . 1 1 . 1 . . . . . . 2 . . . . 1 . Critical Kills 3 | . 1 1 . 1 . . . . . . . . . . . . . Critical Parts Destroyed 3 | . . . . . . . . . . . 2 . . . . 1 . Melee Attacks 95 | . . . . . . . . . . . 8 . 27 . 26 16 18 Impact . | . . . . . . . . . . . . . . . . . . Slashing 95 | . . . . . . . . . . . 8 . 27 . 26 16 18 Piercing . | . . . . . . . . . . . . . . . . . . Sneak Attacks 2 | . . . . . . . . . . . . . . . 2 . . Combat Hostiles 1 | . . . . . . . . . . . . . . . 1 . . Follow-up Attacks 12 | . . . . . . . . . . . 1 . 3 . 6 2 . Damage Inflicted 6840 | . 328 574 78 1098 77 22 681 146 . 753 738 . 533 . 780 1032 . Guns 3394 | . 328 261 78 1088 40 . 681 146 . 328 444 . . . . . . Cannons 25 | . . . . . . . . . . . 25 . . . . . . Explosions 1527 | . . 313 . . 37 . . . . 425 . . . . . 752 . Melee 1786 | . . . . . . . . . . . 193 . 533 . 780 280 . Ramming 108 | . . . . 10 . 22 . . . . 76 . . . . . . Kinetic 3368 | . 302 261 78 1088 40 . 681 146 . 328 444 . . . . . . Thermal 51 | . 26 . . . . . . . . . 25 . . . . . . Explosive 1527 | . . 313 . . 37 . . . . 425 . . . . . 752 . Electromagnetic . | . . . . . . . . . . . . . . . . . . Impact . | . . . . . . . . . . . . . . . . . . Slashing 1786 | . . . . . . . . . . . 193 . 533 . 780 280 . Piercing . | . . . . . . . . . . . . . . . . . . Highest Corruption 26 | . . . . . . 1 2 3 3 4 3 3 12 . . . 26 Average Corruption 3 | . . . . . . 1 1 2 3 3 2 3 5 . . . 21 Corruption Purged . | . . . . . . . . . . . . . . . . . . Effects 53 | . . . . . . . 8 1 2 5 18 6 10 . . . 3 Message Errors 15 | . . . . . . . 2 1 1 2 3 2 4 . . . . Matter Fused 13 | . . . . . . . . . 1 2 5 3 1 . . . 1 Heat Flow Errors 4 | . . . . . . . 1 . . . 3 . . . . . . Energy Discharges 3 | . . . . . . . 1 . . . 2 . . . . . . Parts Rejected 1 | . . . . . . . . . . 1 . . . . . . . Data Loss (minor) 10 | . . . . . . . 4 . . . 4 1 1 . . . . Data Loss (major) 2 | . . . . . . . . . . . . . 1 . . . 1 Misdirections 1 | . . . . . . . . . . . . . . . . . 1 Targeting Errors 4 | . . . . . . . . . . . 1 . 3 . . . . Overload Shots . | . . . . . . . . . . . . . . . . . . Overflow Damage 98 | . . . . . . . . . . 1 . . 36 . 61 . . Projectiles . | . . . . . . . . . . . . . . . . . . Explosions 1 | . . . . . . . . . . 1 . . . . . . . Melee 97 | . . . . . . . . . . . . . 36 . 61 . . Knockbacks . | . . . . . . . . . . . . . . . . . . Impact . | . . . . . . . . . . . . . . . . . . Kinetic . | . . . . . . . . . . . . . . . . . . Secondary . | . . . . . . . . . . . . . . . . . . Self-Inflicted Damage 12 | . . . . . . . . . . 10 . . . . . 2 . Shots 2 | . . . . . . . . . . 1 . . . . . 1 . Rammed 3 | . . . . 1 . 1 . . . . 1 . . . . . . Targets Rammed 5 | . . . . 1 . 1 . . . . 3 . . . . . . Kicked . | . . . . . . . . . . . . . . . . . . Crushed 2 | . . . . . . . . . . . 2 . . . . . . Highest Temperature 260 | . 110 14 6 15 18 . 82 . . 39 260 . . . 4 . . Average Temperature 25 | . 27 4 3 5 6 . 18 . . 19 84 . . . 4 . . Received Heat Transfer 1932 | . 96 15 42 423 18 40 383 . . 102 147 . 294 . 291 36 45 Siege Activations . | . . . . . . . . . . . . . . . . . . Robots Corrupted . | . . . . . . . . . . . . . . . . . . Combat Hostiles . | . . . . . . . . . . . . . . . . . . Parts Fried . | . . . . . . . . . . . . . . . . . . Impact Corruptions . | . . . . . . . . . . . . . . . . . . Robots Melted . | . . . . . . . . . . . . . . . . . . Combat Hostiles . | . . . . . . . . . . . . . . . . . . Parts Melted 1 | . . . . . . . . . . . . . . . 1 . . Heat Transferred 111 | . 74 . . . . . . . . . 37 . . . . . . Parts Sabotaged . | . . . . . . . . . . . . . . . . . . Parts Stolen . | . . . . . . . . . . . . . . . . . . Parts Stripped . | . . . . . . . . . . . . . . . . . . Power Chain Reactions . | . . . . . . . . . . . . . . . . . . Missiles Intercepted . | . . . . . . . . . . . . . . . . . . Alert | -11 -10 -10 -9 -9 -9 -7 -7 -7 -7 -6 -6 -6 -6 -5 -5 -5 -5 ------- Run | Scr Mat Min Mat Sto Rec Fac Low Low Dat Pro Fac Low Low Fac Ext Cet Arc Peak Influence 1099 | . 189 194 34 301 278 1099 . . . . 145 . . 80 243 110 60 Initial 1002 | . . 54 . 14 117 1002 . . . . 93 . . 65 39 . 44 Average 124 | . 105 79 18 144 180 1032 . . . . 54 . . 65 88 70 31 Maximum Alert Level 3 | . . . . 1 1 3 . . . . . . . . 1 . . Low Security (%) 86 | 100 100 100 100 65 57 . . . . . 100 . . 100 98 100 100 Level 1 9 | . . . . 34 42 . . . . . . . . . 1 . . Level 2 . | . . . . . . . . . . . . . . . . . . Level 3 3 | . . . . . . 100 . . . . . . . . . . . Level 4 . | . . . . . . . . . . . . . . . . . . Level 5 . | . . . . . . . . . . . . . . . . . . High Security . | . . . . . . . . . . . . . . . . . . Max Security . | . . . . . . . . . . . . . . . . . . Squads Dispatched 19 | . 1 2 . 5 . 3 . . . . 5 . 1 1 1 . . Investigation 4 | . . . . 1 . 1 . . . . 1 . . . 1 . . Extermination 2 | . . . . . . . . . . . 2 . . . . . . Reinforcement 5 | . 1 . . 1 . . . . . . 2 . . 1 . . . Assault 3 | . . 2 . . . . . . . . . . 1 . . . . Garrison 5 | . . . . 3 . 2 . . . . . . . . . . . Intercept . | . . . . . . . . . . . . . . . . . . Construction Impeded . | . . . . . . . . . . . . . . . . . . Haulers Reinforced . | . . . . . . . . . . . . . . . . . . Stealth | -11 -10 -10 -9 -9 -9 -7 -7 -7 -7 -6 -6 -6 -6 -5 -5 -5 -5 --------- Run | Scr Mat Min Mat Sto Rec Fac Low Low Dat Pro Fac Low Low Fac Ext Cet Arc Distress Signals 8 | . 1 . 1 1 . . . . . . 1 . . . 2 2 . Communications Jammed . | . . . . . . . . . . . . . . . . . . Distress Signals . | . . . . . . . . . . . . . . . . . . Times Spotted 193 | . 15 20 3 23 22 13 6 1 . 12 19 1 14 1 24 15 4 Peak Tracking Total 11 | . 5 4 2 4 4 4 4 1 . 4 6 1 10 1 11 10 4 Tactical Retreats 8 | . . 2 2 . . . . . . 1 1 . 1 . . 1 . Traps | -11 -10 -10 -9 -9 -9 -7 -7 -7 -7 -6 -6 -6 -6 -5 -5 -5 -5 ------- Run | Scr Mat Min Mat Sto Rec Fac Low Low Dat Pro Fac Low Low Fac Ext Cet Arc Traps Triggered 6 | . . . . 1 . 1 . . . . 1 . . . 3 . . Indirectly . | . . . . . . . . . . . . . . . . . . Trap Hack Attempts . | . . . . . . . . . . . . . . . . . . Triggered . | . . . . . . . . . . . . . . . . . . Disarmed . | . . . . . . . . . . . . . . . . . . Reprogrammed . | . . . . . . . . . . . . . . . . . . Reused . | . . . . . . . . . . . . . . . . . . Traps Extracted . | . . . . . . . . . . . . . . . . . . Installed . | . . . . . . . . . . . . . . . . . . Triggered 1 | . . . . . . . . . . . . 1 . . . . . Machines | -11 -10 -10 -9 -9 -9 -7 -7 -7 -7 -6 -6 -6 -6 -5 -5 -5 -5 ---------- Run | Scr Mat Min Mat Sto Rec Fac Low Low Dat Pro Fac Low Low Fac Ext Cet Arc Machines Disabled 2 | . . . . 2 . . . . . . . . . . . . . Max in Single Turn 1 | . . . . 1 . . . . . . . . . . . . . Machines Sabotaged . | . . . . . . . . . . . . . . . . . . Garrisons Compromised . | . . . . . . . . . . . . . . . . . . Overloaded Fab Kills . | . . . . . . . . . . . . . . . . . . Fab Network Shutdowns . | . . . . . . . . . . . . . . . . . . Hacking | -11 -10 -10 -9 -9 -9 -7 -7 -7 -7 -6 -6 -6 -6 -5 -5 -5 -5 --------- Run | Scr Mat Min Mat Sto Rec Fac Low Low Dat Pro Fac Low Low Fac Ext Cet Arc Machines Accessed 49 | . 7 . 1 6 10 3 . . 4 . 11 . . . 3 4 . Terminals 33 | . 6 . 1 5 6 2 . . . . 6 . . . 3 4 . Fabricators 1 | . . . . . . . . . . . 1 . . . . . . Repair Stations 2 | . . . . 1 . . . . . . 1 . . . . . . Recycling Units 7 | . 1 . . . 4 . . . . . 2 . . . . . . Scanalyzers . | . . . . . . . . . . . . . . . . . . Garrison Access 2 | . . . . . . 1 . . . . 1 . . . . . . Total Hacks 157 | . 20 . 2 22 29 15 . . 24 . 25 . . . 13 7 . Successful 90 | . 13 . 1 11 15 7 . . 24 . 10 . . . 5 4 . Failed 67 | . 7 . 1 11 14 8 . . . . 15 . . . 8 3 . Catastrophic 17 | . 1 . . 3 4 4 . . . . 4 . . . 1 . . Database Lockouts . | . . . . . . . . . . . . . . . . . . Manual 49 | . 9 . . 4 9 10 . . . . 8 . . . 7 2 . Terminals 106 | . 19 . 2 16 21 13 . . . . 15 . . . 13 7 . Fabricators 2 | . . . . . . . . . . . 2 . . . . . . Repair Stations 8 | . . . . 6 . . . . . . 2 . . . . . . Recycling Units 14 | . 1 . . . 8 . . . . . 5 . . . . . . Scanalyzers . | . . . . . . . . . . . . . . . . . . Garrison Access 3 | . . . . . . 2 . . . . 1 . . . . . . Terminal Hacks 62 | . 7 . 1 4 7 5 . . 24 . 5 . . . 5 4 . Record 17 | . . . . . . . . . 11 . 1 . . . 3 2 . Part Schematic 5 | . . . . 1 . . . . 4 . . . . . . . . Robot Schematic 7 | . . . . . 1 . . . 6 . . . . . . . . Robot Analysis 1 | . . . . . . 1 . . . . . . . . . . . Prototype ID Bank 11 | . 3 . 1 1 1 . . . 3 . 1 . . . 1 . . Open Door 1 | . . . . . . . . . . . . . . . . 1 . Branch Access Points 6 | . 1 . . 1 . 1 . . . . 1 . . . 1 1 . Scanalyzer Index 1 | . . . . . 1 . . . . . . . . . . . . Alert Level 4 | . 1 . . . 1 1 . . . . 1 . . . . . . Locate Traps 3 | . 1 . . 1 . 1 . . . . . . . . . . . Dispatch Records 1 | . . . . . 1 . . . . . . . . . . . . Maintenance Status 1 | . . . . . 1 . . . . . . . . . . . . Investigation Status 1 | . . . . . 1 . . . . . . . . . . . . Hauler Manifests 1 | . 1 . . . . . . . . . . . . . . . . Zone Layout 2 | . . . . . . 1 . . . . 1 . . . . . . Fabricator Hacks . | . . . . . . . . . . . . . . . . . . Repair Station Hacks 8 | . . . . 6 . . . . . . 2 . . . . . . Scan Component 4 | . . . . 3 . . . . . . 1 . . . . . . Repair 4 | . . . . 3 . . . . . . 1 . . . . . . Recycling Unit Hacks 8 | . . . . . 6 . . . . . 2 . . . . . . Process 1 | . . . . . 1 . . . . . . . . . . . . Report Inventory 5 | . . . . . 4 . . . . . 1 . . . . . . Retrieve Matter 1 | . . . . . 1 . . . . . . . . . . . . Retrieve Components 1 | . . . . . . . . . . . 1 . . . . . . Scanalyzer . | . . . . . . . . . . . . . . . . . . Garrison Access Hacks . | . . . . . . . . . . . . . . . . . . Unauthorized Hacks 12 | . 6 . . 1 2 2 . . . . 1 . . . . . . Terminals 8 | . 5 . . 1 . 2 . . . . . . . . . . . Track 7 | . 4 . . 1 . 2 . . . . . . . . . . . Assimilate 1 | . 1 . . . . . . . . . . . . . . . . Fabricators . | . . . . . . . . . . . . . . . . . . Repair Stations . | . . . . . . . . . . . . . . . . . . Recycling Units 3 | . 1 . . . 2 . . . . . . . . . . . . Monitor 2 | . 1 . . . 1 . . . . . . . . . . . . Recyclers 1 | . . . . . 1 . . . . . . . . . . . . Scanalyzers . | . . . . . . . . . . . . . . . . . . Garrison Access 1 | . . . . . . . . . . . 1 . . . . . . Reprogram 1 | . . . . . . . . . . . 1 . . . . . . Data Cores Recovered . | . . . . . . . . . . . . . . . . . . Used . | . . . . . . . . . . . . . . . . . . Hacking Detections 39 | . 6 . 1 6 9 3 . . . . 9 . . . 3 2 . Full Trace Events 3 | . . . . 1 . 1 . . . . 1 . . . . . . Feedback Events 1 | . . . . . . 1 . . . . . . . . . . . Corruption 1 | . . . . . . 1 . . . . . . . . . . . Feedback Blocked . | . . . . . . . . . . . . . . . . . . Robot Schematics Acquired 7 | . . . . . 1 . . . 6 . . . . . . . . Robots Built . | . . . . . . . . . . . . . . . . . . Matter . | . . . . . . . . . . . . . . . . . . Time . | . . . . . . . . . . . . . . . . . . Total Robot Build Rating . | . . . . . . . . . . . . . . . . . . Part Schematics Acquired 5 | . . . . 1 . . . . 4 . . . . . . . . Parts Built . | . . . . . . . . . . . . . . . . . . Matter . | . . . . . . . . . . . . . . . . . . Time . | . . . . . . . . . . . . . . . . . . Total Part Build Rating . | . . . . . . . . . . . . . . . . . . Parts Repaired 4 | . . . . 3 . . . . . . 1 . . . . . . Time 128 | . . . . 90 . . . . . . 38 . . . . . . Parts Recycled . | . . . . . . . . . . . . . . . . . . Recycled Matter 12 | . . . . . 12 . . . . . . . . . . . . Retrieved Matter 12 | . . . . . 12 . . . . . . . . . . . . Retrieved Components 10 | . . . . . . . . . . . 10 . . . . . . Parts Scanalyzed . | . . . . . . . . . . . . . . . . . . Part Schematics Acquired . | . . . . . . . . . . . . . . . . . . Parts Damaged . | . . . . . . . . . . . . . . . . . . Bothacking | -11 -10 -10 -9 -9 -9 -7 -7 -7 -7 -6 -6 -6 -6 -5 -5 -5 -5 ------------ Run | Scr Mat Min Mat Sto Rec Fac Low Low Dat Pro Fac Low Low Fac Ext Cet Arc Used RIF Installer . | . . . . . . . . . . . . . . . . . . Robots Hacked . | . . . . . . . . . . . . . . . . . . Non-combat . | . . . . . . . . . . . . . . . . . . Combat . | . . . . . . . . . . . . . . . . . . Robot Hacks Applied . | . . . . . . . . . . . . . . . . . . Relay Couplers Released . | . . . . . . . . . . . . . . . . . . Robots Rewired 10 | . . . . . . . . . . . . . . . 10 . . Allies Hacked 1 | . . . . . . . . . . . 1 . . . . . . Hacks Repelled 2 | . . . . . . . . . . . . 2 . . . . . Allies | -11 -10 -10 -9 -9 -9 -7 -7 -7 -7 -6 -6 -6 -6 -5 -5 -5 -5 -------- Run | Scr Mat Min Mat Sto Rec Fac Low Low Dat Pro Fac Low Low Fac Ext Cet Arc Total Allies 28 | . . 1 . 10 . . . . . 1 2 . 1 . 13 . . Largest Group 10 | . . 1 . 10 10 10 . . . 1 2 2 1 . 8 . . Highest-Rated Group 223 | . . 31 . 88 88 88 . . . 94 94 70 146 . 223 . . Highest-Rated Ally 146 | . . 31 . 16 16 16 . . . 94 94 38 146 . 37 . . Total Orders 1 | . . . . . . . . . . . . . . . 1 . . AID 1 | . . . . . . . . . . . . . . . 1 . . Ally Attacks 344 | . . 18 . 6 142 61 . . . 30 8 6 9 . 64 . . Total Damage 4690 | . . 207 . 65 776 547 . . . 811 250 242 474 . 1318 . . Kills 62 | . . 3 . 1 25 4 . . . 8 2 3 4 . 12 . . Allies Corrupted . | . . . . . . . . . . . . . . . . . . Allies Melted . | . . . . . . . . . . . . . . . . . . Intel | -11 -10 -10 -9 -9 -9 -7 -7 -7 -7 -6 -6 -6 -6 -5 -5 -5 -5 ------- Run | Scr Mat Min Mat Sto Rec Fac Low Low Dat Pro Fac Low Low Fac Ext Cet Arc Robot Analysis Total 1 | . . . . . . 1 . . . . . . . . . . . Derelict Logs Recovered 11 | . . 2 . . . . 2 1 . 2 . 2 2 . . . . Drone Launches . | . . . . . . . . . . . . . . . . . . Drone Recoveries . | . . . . . . . . . . . . . . . . . . Exploration | -11 -10 -10 -9 -9 -9 -7 -7 -7 -7 -6 -6 -6 -6 -5 -5 -5 -5 ------------- Run | Scr Mat Min Mat Sto Rec Fac Low Low Dat Pro Fac Low Low Fac Ext Cet Arc Turns Passed 9542 | 72 640 1006 85 1128 692 221 853 323 125 627 1698 342 274 222 873 256 105 Spaces Moved 5263 | 47 383 568 44 459 385 112 435 167 78 338 1043 245 123 130 419 229 58 Core 33 | 16 . . . . . . . . . . . . 1 . 15 1 . Treads 2090 | . . . . 304 385 112 435 167 78 338 271 . . . . . . Legs 2461 | 31 383 568 44 155 . . . . . . 772 245 122 11 . 77 53 Wheels . | . . . . . . . . . . . . . . . . . . Hover 679 | . . . . . . . . . . . . . . 119 404 151 5 Flight . | . . . . . . . . . . . . . . . . . . Fastest Speed 34 | 50 120 120 120 120 160 160 160 160 162 162 120 120 120 34 34 38 50 Average Speed 134 | 123 126 149 120 147 160 160 172 161 162 162 131 120 128 45 87 72 118 Slowest Speed 1250 | 200 150 150 120 180 160 160 180 162 162 182 240 120 600 290 1250 1200 160 Overloaded Moves . | . . . . . . . . . . . . . . . . . . Propulsion Burnouts . | . . . . . . . . . . . . . . . . . . Robots Hopped . | . . . . . . . . . . . . . . . . . . Cave-ins Triggered 4 | . . . . . . . . . . . . . . . . . 4 Exploration Rate (%) 47 | 4 68 92 7 55 98 3 65 37 72 51 31 54 9 4 59 88 51 Regions Visited 17 Branch Regions 12 Pre-discovered Areas 6 | . . 1 . . . . 1 . 1 1 . 1 1 . . . . Known Exits Taken 6 | . 1 . . 1 . 1 . . . . 1 . . . 1 1 . Unknown Exits Taken 11 | 1 . 1 1 . 1 . 1 1 1 1 . 1 1 1 . . . Scrap Searched 10 | . . 1 . . . . 5 2 . 2 . . . . . . . Spaces Dug 12 | . . . . . . . . . . . . . . . . . 12 Terrain Destroyed 157 | . . 6 . . 22 . . . . 10 . . . . . 107 12 Melee 12 | . . . . . . . . . . . . . . . . . 12 Projectile . | . . . . . . . . . . . . . . . . . . AOE 145 | . . 6 . . 22 . . . . 10 . . . . . 107 . Terrain Rammed . | . . . . . . . . . . . . . . . . . . Walls Destroyed . | . . . . . . . . . . . . . . . . . . Machines Disabled . | . . . . . . . . . . . . . . . . . . Actions | -11 -10 -10 -9 -9 -9 -7 -7 -7 -7 -6 -6 -6 -6 -5 -5 -5 -5 --------- Run | Scr Mat Min Mat Sto Rec Fac Low Low Dat Pro Fac Low Low Fac Ext Cet Arc Total 7213 | 58 499 674 65 799 441 153 496 207 77 382 1321 295 198 291 895 287 75 Wait 1216 | . 60 52 12 216 41 32 20 29 . 12 156 45 31 138 348 24 . Move 5245 | 46 382 567 43 458 384 111 434 166 77 337 1042 244 122 129 418 228 57 Hop . | . . . . . . . . . . . . . . . . . . Pick Up 103 | 6 12 3 . 23 1 4 6 . . 3 22 3 5 8 7 . . Fast Attach 51 | 6 2 5 . 7 . . 1 1 . . 7 . 6 7 5 4 . Attach 73 | . . 1 2 5 1 4 5 1 . 6 21 . 9 2 5 6 5 Detach 14 | . . . . 1 . . 2 . . . 2 . . 6 1 2 . Swap 49 | . 4 8 2 9 2 1 3 2 . 5 7 . 2 . 1 3 . Drop 73 | . 12 7 . 15 1 . . 1 . . 22 3 1 1 10 . . Fire 227 | . 27 31 6 63 11 . 24 7 . 19 30 . . . . 9 . Melee 71 | . . . . . . . . . . . 6 . 22 . 20 11 12 Ram . | . . . . . . . . . . . . . . . . . . Kick . | . . . . . . . . . . . . . . . . . . Crush 5 | . . . . 1 . 1 . . . . 3 . . . . . . Escape Stasis 30 | . . . . . . . . . . . 3 . . . 26 . 1 Rewire 56 | . . . . 1 . . 1 . . . . . . . 54 . . Trap . | . . . . . . . . . . . . . . . . . . Miscellaneous . | . . . . . . . . . . . . . . . . . . Route ------- -11/Scrapyard -10/Materials (discovered 2 exits: *Mat / *Min) -10/Mines (discovered 2 exits: *Mat x2) -9/Materials -9/Storage -9/Recycling -7/Factory (discovered 2 exits: *Low x2) -7/Lower Caves -7/Lower Caves -7/Data Miner -6/Proximity Caves -6/Factory (discovered 3 exits: [*Fac] / *Low x2) -6/Lower Caves -6/Lower Caves (discovered 2 exits: [*Fac x2]) -5/Factory (discovered 2 exits: Fac / *Ext) -5/Extension (discovered 2 exits: *Fac / *Cet) -5/Cetus (discovered 2 exits: *Fac / *Arc) -5/Archives History --------- Turn | Location | Event 30 | -11/Scrapyard | Discovered new exit (range 14) 73 | -11/Scrapyard | Entered Materials 175 | -10/Materials | Identified exit to Mines 235 | -10/Materials | Discovered new exit (range 14) 306 | -10/Materials | Build established: Mutant 713 | -10/Materials | Entered Mines 720 | -10/Mines | Received a Rocket Launcher from a helpful Derelict 1036 | -10/Mines | Met a Derelict testing a Signal Generator 1180 | -10/Mines | Learned 2 Materials zone layouts 1376 | -10/Mines | Build established: Scavenger-Mutant 1567 | -10/Mines | Joined a pair of Derelicts in attacking an 0b10 outpost 1636 | -10/Mines | Discovered new exit (range 6) 1678 | -10/Mines | Discovered new exit (range 8) 1719 | -10/Mines | Entered Materials 1719 | -9/Materials | Evolved 2 slots: Propulsion x2 1733 | -9/Materials | Discovered new exit (range 11) 1804 | -9/Materials | Entered Storage 1859 | -9/Storage | Repaired Carbon-fiber Leg 1886 | -9/Storage | Repaired Lgt. Assault Rifle 1914 | -9/Storage | Repaired Lgt. Assault Rifle 2536 | -9/Storage | Garrison activated, responded to threat 2610 | -9/Storage | Core integrity fell below 50% 2634 | -9/Storage | Build established: Hauler-Mutant 2804 | -9/Storage | Identified exit to Recycling 2806 | -9/Storage | Assisted by bots powering up and referring to "LRC-V3" 2905 | -9/Storage | Used back door to open Recycling access 2932 | -9/Storage | Entered Recycling 2932 | -9/Recycling | Accompanied by 10 allies 2984 | -9/Recycling | Spotter reported a threat 2987 | -9/Recycling | Spotter reported a threat 3035 | -9/Recycling | Spotter reported a threat 3053 | -9/Recycling | Spotter reported a threat 3055 | -9/Recycling | Spotter reported a threat 3068 | -9/Recycling | Spotter reported a threat 3105 | -9/Recycling | Spotter reported a threat 3115 | -9/Recycling | Build established: Commander-Mutant 3146 | -9/Recycling | Spotter reported a threat 3219 | -9/Recycling | Spotter reported a threat 3243 | -9/Recycling | Spotter reported a threat 3249 | -9/Recycling | Spotter reported a threat 3275 | -9/Recycling | Spotter reported a threat 3296 | -9/Recycling | Spotter reported a threat 3314 | -9/Recycling | Spotter reported a threat 3320 | -9/Recycling | Spotter reported a threat 3373 | -9/Recycling | Spotter reported a threat 3374 | -9/Recycling | Spotter reported a threat 3393 | -9/Recycling | Spotter reported a threat 3429 | -9/Recycling | Spotter reported a threat 3432 | -9/Recycling | Spotter reported a threat 3432 | -9/Recycling | Spotter reported a threat 3469 | -9/Recycling | Spotter reported a threat 3469 | -9/Recycling | Spotter reported a threat 3498 | -9/Recycling | Discovered new exit (range 9) 3516 | -9/Recycling | Spotter reported a threat 3520 | -9/Recycling | Spotter reported a threat 3520 | -9/Recycling | Spotter reported a threat 3526 | -9/Recycling | Spotter reported a threat 3571 | -9/Recycling | Spotter reported a threat 3571 | -9/Recycling | Spotter reported a threat 3571 | -9/Recycling | Spotter reported a threat 3624 | -9/Recycling | Entered Factory 3624 | -7/Factory | Accompanied by 10 allies 3624 | -7/Factory | Evolved 4 slots: Propulsion x1, Utility x3 3651 | -7/Factory | Identified exit to Lower Caves 3715 | -7/Factory | Garrison activated, responded to threat 3824 | -7/Factory | Assembled infested ambush trap array 3845 | -7/Factory | Entered Lower Caves 4072 | -7/Lower Caves | Build established: Hauler-Mutant 4089 | -7/Lower Caves | Ambushed by wild Derelicts 4169 | -7/Lower Caves | Lost 3 parts (2n1w) 4327 | -7/Lower Caves | Learned location of Extension (-5) 4438 | -7/Lower Caves | Learned Factory garrison access intel 4665 | -7/Lower Caves | Discovered new exit (range 10) 4698 | -7/Lower Caves | Entered another Lower Caves area 4746 | -7/Lower Caves | Spotted B-75 Beast 4747 | -7/Lower Caves | Encountered a Warlord checkpoint 4809 | -7/Lower Caves | Learned Factory trap positions 5000 | -7/Lower Caves | Discovered new exit (range 12) 5021 | -7/Lower Caves | Entered Data Miner 5021 | -7/Data Miner | Discovered new exit (range 6) 5046 | -7/Data Miner | Met Data Miner 5096 | -7/Data Miner | Learned location of Section 7 (-2) 5096 | -7/Data Miner | Acquired the access code to Warlord's prototype stash 5111 | -7/Data Miner | Received God Mode back door access code from Data Miner 5146 | -7/Data Miner | Entered Proximity Caves 5184 | -6/Proximity Caves | Escorted by Enhanced Grunt 5451 | -6/Proximity Caves | Learned location of Zion (-6) 5469 | -6/Proximity Caves | Learned Factory trap positions 5755 | -6/Proximity Caves | Discovered new exit (range 11) 5773 | -6/Proximity Caves | Entered Factory 5773 | -6/Factory | Accompanied by 1 ally 5773 | -6/Factory | Evolved 2 slots: Utility x2 5774 | -6/Factory | Loaded intel: 96 trap records 5775 | -6/Factory | Loaded intel: 4 garrison access locations 6102 | -6/Factory | Incoming investigation squad redirected 6461 | -6/Factory | Lost 20 parts (3p10n3u4w) 6719 | -6/Factory | Build established: Scavenger-Mutant 6894 | -6/Factory | Repaired Carbon-fiber Leg 6896 | -6/Factory | Discovered new exit (range 10) 7148 | -6/Factory | Build established: Hacker-Mutant 7207 | -6/Factory | Identified exit to Lower Caves 7471 | -6/Factory | Entered Lower Caves 7471 | -6/Lower Caves | Accompanied by 2 allies 7519 | -6/Lower Caves | Encountered a Warlord checkpoint 7578 | -6/Lower Caves | Spotted B-75 Beast 7639 | -6/Lower Caves | Learned location of 1 exit from Factory 7797 | -6/Lower Caves | Discovered new exit (range 4) 7813 | -6/Lower Caves | Entered another Lower Caves area 7813 | -6/Lower Caves | Accompanied by 1 ally 7814 | -6/Lower Caves | Encountered a Warlord checkpoint 7816 | -6/Lower Caves | Discovered new exit (range 20) 7823 | -6/Lower Caves | Learned 4 Factory zone layouts 7914 | -6/Lower Caves | Attracted the attention of an 0b10 outpost 7996 | -6/Lower Caves | System corruption reached 10% 7999 | -6/Lower Caves | Core integrity fell below 50% 8011 | -6/Lower Caves | Core integrity fell below 20% 8018 | -6/Lower Caves | NK-0LA showed up to help 8020 | -6/Lower Caves | NK-0LA revealed a hidden path 8055 | -6/Lower Caves | Lost 13 parts (1p4n5u3w) 8087 | -6/Lower Caves | Entered Factory 8087 | -5/Factory | Evolved 2 slots: Utility x2 8088 | -5/Factory | Identified exit to Factory 8090 | -5/Factory | Loaded intel: 111 trap records 8305 | -5/Factory | Discovered new exit (range 12) 8309 | -5/Factory | Entered Extension 8482 | -5/Extension | Identified exit to Cetus 8521 | -5/Extension | Rescued a captive Derelict 8523 | -5/Extension | Rescued a captive Derelict 8740 | -5/Extension | Lost 3 parts (1p2u) 8790 | -5/Extension | Rescued a captive Derelict 9075 | -5/Extension | Spotted B-75 Beast 9108 | -5/Extension | Spotted B-75 Beast 9166 | -5/Extension | Lost 4 parts (1p1n2u) 9168 | -5/Extension | Discovered exit to Factory (range 14) 9182 | -5/Extension | Entered Cetus 9194 | -5/Cetus | Spotted Cetus Guard 9195 | -5/Cetus | Spotted Cetus Guard 9195 | -5/Cetus | Spotted Cetus Guard 9203 | -5/Cetus | Discovered exit to Factory (range 16) 9240 | -5/Cetus | Destroyed Cetus Guard 9247 | -5/Cetus | Spotted Cetus Guard 9286 | -5/Cetus | Lost 5 parts (1p2n1u1w) 9309 | -5/Cetus | Core integrity fell below 50% 9351 | -5/Cetus | Lost 5 parts (1p2n2u) 9374 | -5/Cetus | Identified exit to Archives 9410 | -5/Cetus | Spotted Cetus Guard 9410 | -5/Cetus | Spotted Cetus Guard 9438 | -5/Cetus | Entered Archives 9498 | -5/Archives | Crushed by falling debris 9506 | -5/Archives | Crushed by falling debris 9506 | -5/Archives | System corruption reached 10% 9510 | -5/Archives | Crushed by falling debris 9511 | -5/Archives | Core integrity fell below 20% 9514 | -5/Archives | Crushed by falling debris 9543 | -5/Archives | Destroyed by Y-72 Warden with Railgun Last Messages --------------- 09514_ Crushed by falling debris. 09514_ Scythe destroyed. 09514_ System corrupted by crushing effect (+3). 09515_ System corrupted: Matter fused (-7). 09532_ System corrupted: Substantial component data lost. 09536_ Penetrated by Slug. 09536_ Flexi-carbon Leg destroyed. 09536_ Slug penetrates Wall. 09539_ Penetrated by Slug. 09539_ Slug penetrates Wall. 09539_ Penetrated by Slug. 09539_ Slug penetrates Wall. 09540_ Cld. Aerolev Unit destroyed. 09541_ Scythe destroyed. 09541_ Penetrated by Slug. 09541_ Slug penetrates Wall. 09542_ Hcp. Storage Unit destroyed. 09542_ Penetrated by Slug. 09542_ Flexi-carbon Leg destroyed. 09542_ Slug penetrates Wall. Map ----- +----------------------------------------------------+ | | | | | | | | | | | | | | | | | ????????????????????????????????????????????? | | ????????????????????????????????????????????? | | ????????????????????????????????????????????? | | ????????????????????????????????????????????? | | ????????????????????????????????????????????? | | ????????????????????????????????????????????? | | ????????????????????????????????????????????? | | ????????????????????????????????????????????? | | ????????????????????????????????????????????? | | ????????????????????????????????????????????? | | ??????????????????????" ????????????????????? | | ???????????????????"""" ????????????????????? | | ?????????????????###"#"###??????????????????? | | ?????????????????#"""""""#??????????????????? | | ?????????????????#"""V"""#??????????????????? | | ?????????????????#""" """#?? #??????????????? | | ????????????????##"" ""# ##?????????????? | | ??############### @ o Y #?????????????? | | ??# Y """???????????? | | ??# *! """???????????? | | ??# ] ""???????????? | | ??#####+######### V???????????? | | ??# """"" ""???????????? | | ?## #"""" o """???????????? | | ?## """"""" o o""????????????? | | ?# """""""""#"V #;????????????? | | ?# """"""""""""" ????????????? | | ?##"""""""""#"""" ????????????? | | ?#""""""""""#"""" ????????????? | | ?##"#"#######??##Y Y#?????????????? | | ?######?????????## o#"" ""#??????????????? | | ?????????????????# #""" ""????????????????? | | ?????????????????? #???V??????????????????? | | ?????????????????? #??????????????????????? | | ?????????????????? ???????????????????????? | | ????????????????????????????????????????????? | | ????????????????????????????????????????????? | | ????????????????????????????????????????????? | | ????????????????????????????????????????????? | | ????????????????????????????????????????????? | | ????????????????????????????????????????????? | | ????????????????????????????????????????????? | +----------------------------------------------------+ Best States ------------- Heat Dissipation 51 Energy Generation 19 Energy Capacity 315 Matter Stores 300 Matter Capacity 300 Sight Range 20 Robot Scan Range 16 Terrain Scan Density 10 Jamming Range 12 Armor Coverage 225 Propulsion Shielding 33 Melee Speed Boost 20 Evasion (%) 64 Recoil Reduction 5 Offensive Hacking 10 Defensive Hacking 22 Item Schematics ----------------- Adv. Signal Interpreter | -9/Storage | Hacked Combat Drone Bay | -7/Data Miner | Free Lgt. Regenerative Plating | -7/Data Miner | Free Triangulator | -7/Data Miner | Free Tactical Coordination Suite | -7/Data Miner | Free Robot Schematics ------------------ G-34 Mercenary | -9/Recycling | Hacked S-27 Virus | -7/Data Miner | Free G-50 Soldier | -7/Data Miner | Free G-67 Veteran | -7/Data Miner | Free L-41 Fighter | -7/Data Miner | Free P-70 Sage | -7/Data Miner | Free I-36 Angel | -7/Data Miner | Free Fabricated ------------ Nothing Alien Tech Used ----------------- None Achievements -------------- \\IAMDERELICT Challenges ------------ None Game ------ Seed MachineGammaArray Manual? 0 Play Time 01:58:26 Cumulative 26.4 hours Start 2020.10.10 @ 17:10:47 End 2020.10.10 @ 20:45:03 Sessions 1 Manual Loads 0 Difficulty Rogue Special Mode None Game No. 35 Rogue 35 Adventurer 0 Explorer 0 Win Type - Total 0 Types 0/0/0/0/0/0/0/0/0 Lore% 42 Gallery% 31 Achievement% 30 Wizard Run 0 Options --------- ASCII 0 Keyboard 1 Movement Vi Keybinds 0 Fullscreen 2 Font 24/Proggy Map View 76x50 Tactical HUD 1 Map Filters NONE Filters NONE Steam 1 RUN: a3eeb8f7-3291-47f0-8230-a4fcc4f964e9